fUSD/lending_fUSD_20241231
["ID","MTS","AMOUNT","RATE_DAILY","PERIOD"]
[347242098,1735614632705,-182.77,0.00012078,2]
[347242099,1735614632715,-150.0,0.00012078,2]
[347242101,1735614633018,-436.74,0.00012078,2]
[347242102,1735614633047,-150.0,0.00012078,2]
[347242103,1735614633056,-182.77,0.00012078,2]
[347242104,1735614633065,-150.0,0.00012078,2]
[347242105,1735614633075,-182.77,0.00012078,2]
[347242106,1735614633085,-182.77,0.00012078,2]
[347242107,1735614633097,-150.0,0.00012078,2]
[347242108,1735614633108,-182.5,0.00012078,2]
[347242109,1735614633117,-150.0,0.00012078,2]
[347242110,1735614633127,-152.32,0.00012195,2]
[347242111,1735614633136,-3891.0,0.00012228,2]
[347242112,1735614633146,-375.408,0.00012228,2]
[347242113,1735614633156,-150.0,0.00012228,2]
[347242114,1735614633166,-151.31,0.00012343,2]
[347242115,1735614633178,-151.67,0.00012343,2]
[347242116,1735614633189,-152.73,0.00012343,2]
[347242117,1735614633198,-150.48,0.00012343,2]
[347242118,1735614633208,-441.365,0.0001235,2]
[347242119,1735614633218,-301.63,0.00012352,2]
[347242120,1735614633229,-321.1582393,0.0001236,2]
[347242121,1735614633238,-2500.0,0.00012379,2]
[347242122,1735614633247,-5000.0,0.0001238,2]
[347242123,1735614633257,-1008.0,0.000124,2]
[347242124,1735614633268,-1055.616,0.0001246,2]
[347242125,1735614633277,-200.0,0.00012463,2]
[347242126,1735614633287,-1729.355,0.00012464,2]
[347242127,1735614633296,-499.25,0.00012464,2]
[347242128,1735614633306,-212.844,0.00012464,2]
[347242129,1735614633316,-150.0,0.00012464,2]
[347242130,1735614633326,-150.0,0.00012464,2]
[347242131,1735614633335,-150.0,0.00012464,2]
[347242132,1735614633345,-1266.0,0.00012464,2]
[347242133,1735614633355,-2013.0,0.00012464,2]
[347242134,1735614633365,-200.0,0.00012466,2]
[347242135,1735614633375,-200.0,0.00012471,2]
[347242136,1735614633384,-200.0,0.00012478,2]
[347242137,1735614633394,-200.0,0.00012478,2]
[347242138,1735614633404,-3003.3,0.00012478,2]
[347242139,1735614633413,-200.0,0.00012478,2]
[347242140,1735614633422,-3000.0,0.00012478,2]
[347242141,1735614633432,-2000.0,0.00012478,2]
[347242142,1735614633441,-200.0,0.00012478,2]
[347242143,1735614633451,-62381.84776742,0.00012478,2]
[347242144,1735614633464,-425.0,0.00012478,2]
[347242145,1735614633475,-711.6811421,0.00012478,2]
[347242153,1735614638262,-996.92459432,0.00012228,2]
[347242154,1735614638274,-105.07540568,0.00012228,2]
[347242155,1735614638284,-1635.04658822,0.00012478,2]
[347242156,1735614638295,-1196.71796321,0.00012478,2]
[347242157,1735614638306,-5754.06170815,0.00012478,2]
[347242158,1735614638317,-1815.71779286,0.00012478,2]
[347242159,1735614638328,-380.67641698,0.00012478,2]
[347242160,1735614638475,-785.34100842,0.00012478,2]
[347242382,1735614640596,-1934.19,0.00012478,2]
[347242384,1735614640607,-3164.80980677,0.00012478,2]
[347242394,1735614640692,-875.81996469,0.00012478,2]
[347242397,1735614640703,-686.1,0.00012478,2]
[347242399,1735614640715,-1202.799999,0.00012478,2]
[347242401,1735614640726,-68066.05604874,0.00012478,2]
[347242695,1735614643527,-5189.4370075,0.00012478,2]
[347242697,1735614643541,-3281.28781095,0.00012478,2]
[347242730,1735614643853,-364.72,0.00012078,2]
[347242731,1735614643862,-1915.91485308,0.00012478,2]
[347242732,1735614643874,-13131.96490288,0.00012478,2]
[347242733,1735614643885,-2847.59268996,0.00012478,2]
[347242734,1735614643896,-329.19,0.00012478,2]
[347242735,1735614643907,-13259.25,0.00012478,2]
[347242817,1735614646514,-1717.1631246,0.00012478,2]
[347242818,1735614646526,-9562.05765271,0.00012478,2]
[347242819,1735614646541,-388.91935723,0.00012478,2]
[347242820,1735614647185,-625.32029203,0.00012478,2]
[347242821,1735614820279,-1082.21355418,0.00012498,3]
[347242822,1735614882158,200.0,0.000119,4]
[347242823,1735614884242,500.0,0.00012,4]
[347242824,1735614886333,800.0,0.000121,4]
[347242825,1735614888438,1100.0,0.000122,4]
[347242826,1735614891262,1400.0,0.000123,4]
[347242827,1735614892660,200.0,0.000124,4]
[347242828,1735614895189,200.0,0.000125,4]
[347242829,1735614896889,200.0,0.000126,4]
[347242830,1735615032525,158.16,0.00010137,2]
[347242831,1735615242160,669.05,9.635e-05,2]
[347242832,1735615450213,300.0,0.0002,120]
[347242833,1735615485242,-1397.10439901,0.00012468,3]
[347242863,1735615832563,-250.0,0.00011502,2]
[347242864,1735615832573,-641.53,0.00011505,2]
[347242865,1735615832582,-2908.53694456,0.00011506,2]
[347242875,1735615833019,-523.0307022,0.00011506,2]
[347242877,1735615833033,-345.08781611,0.00011506,2]
[347242880,1735615836185,-13.40453713,0.00011506,2]
[347242881,1735615836208,-1000.0,0.00011515,2]
[347242882,1735615836229,-250.0,0.00011561,2]
[347242883,1735615836250,-309.81,0.00011603,2]
[347242884,1735615836589,-669.05,0.00011899,2]
[347242885,1735615836609,-500.0,0.00012137,2]
[347242886,1735615836631,-177.572869,0.00012152,2]
[347242887,1735615836651,-187.197182,0.00012152,2]
[347242888,1735615836671,-187.197182,0.00012152,2]
[347242889,1735615836692,-423.112,0.0001235,2]
[347242890,1735615836716,-1000.0,0.00012378,2]
[347242891,1735615836736,-2000.0,0.000124,2]
[347242892,1735615836757,-314.0,0.000124,2]
[347242893,1735615836779,-187.197182,0.00012456,2]
[347242894,1735615836801,-1383.484,0.00012462,2]
[347242895,1735615836822,-1102.0,0.00012462,2]
[347242896,1735615836843,-2013.0,0.00012462,2]
[347242897,1735615836863,-1266.0,0.00012462,2]
[347242898,1735615836884,-3891.0,0.00012462,2]
[347242899,1735615836906,-150.0,0.00012462,2]
[347242900,1735615836927,-25076.66769362,0.0001247,2]
[347242901,1735615836948,-150.0,0.00012478,2]
[347242902,1735615836971,-150.0,0.00012478,2]
[347242903,1735615836992,-150.0,0.00012478,2]
[347242904,1735615837012,-555.77616299,0.00012478,2]
[347242905,1735615837033,-150.0,0.00012478,2]
[347242906,1735615837053,-150.0,0.00012478,2]
[347242907,1735615837075,-70949.99656748,0.00012478,2]
[347242908,1735615837095,-9920.02237821,0.00012478,2]
[347242909,1735615837115,-4776.53259055,0.00012478,2]
[347242910,1735615837136,-7027.86387374,0.00012478,2]
[347242911,1735615837159,-500.0,0.00012478,2]
[347242912,1735615837179,-554.86,0.00012478,2]
[347242913,1735615837200,-3000.0,0.00012478,2]
[347242914,1735615837221,-3330.66862862,0.00012478,2]
[347242915,1735615837242,-19454.26919947,0.00012478,2]
[347242917,1735615838587,-636.0,0.00012462,2]
[347242918,1735615838596,-431.24041763,0.00012478,2]
[347242919,1735615838607,-2544.61658396,0.00012478,2]
[347242920,1735615838643,-8922.38523977,0.00012478,2]
[347242921,1735615838654,-451.35898492,0.00012478,2]
[347242923,1735615838735,-16900.34454111,0.00012478,2]
[347242926,1735615840796,-1391.82257737,0.00012478,2]
[347242927,1735615840808,-395.45338623,0.00012478,2]
[347242928,1735615840821,-90522.20321673,0.00012478,2]
[347242929,1735615840881,-342.108,0.00012478,2]
[347242937,1735615843830,-149100.51999997,0.00012478,2]
[347243229,1735615846770,-229225.75109774,0.00012478,2]
[347243231,1735615846781,-840.0,0.00012478,2]
[347243233,1735615846790,-29514.16356742,0.00012479,2]
[347243241,1735616148916,678.45,9.643e-05,2]
[347243242,1735616160123,432.79,0.00010137,2]
[347243243,1735616341509,697.0,0.0002,120]
[347243264,1735617031871,-155.41,0.00011329,2]
[347243265,1735617031881,-155.41,0.00011336,2]
[347243266,1735617031890,-155.41,0.00011342,2]
[347243267,1735617031900,-155.41,0.00011348,2]
[347243268,1735617031909,-155.41,0.00011354,2]
[347243269,1735617031919,-155.41,0.00011361,2]
[347243270,1735617031928,-155.41,0.00011367,2]
[347243271,1735617031939,-155.41,0.00011373,2]
[347243272,1735617031948,-155.41,0.0001138,2]
[347243273,1735617031958,-1000.0,0.00011384,2]
[347243274,1735617031967,-155.41,0.00011386,2]
[347243275,1735617031976,-866.83,0.00011426,2]
[347243276,1735617031986,-300.0,0.00011475,2]
[347243277,1735617031996,-7052.79,0.00011476,2]
[347243278,1735617032005,-250.0,0.0001149,2]
[347243279,1735617032014,-250.0,0.00011509,2]
[347243280,1735617032024,-400.0,0.00011513,2]
[347243281,1735617032034,-250.0,0.00011532,2]
[347243282,1735617032043,-150.0,0.00011534,2]
[347243283,1735617032053,-419.54,0.00011561,2]
[347243284,1735617032063,-678.45,0.00011907,2]
[347243285,1735617032073,-421.438,0.0001197,2]
[347243286,1735617032083,-450.0,0.00012,2]
[347243287,1735617032092,-500.0,0.00012027,2]
[347243288,1735617032102,-502.06,0.00012095,2]
[347243289,1735617032111,-436.21,0.000122,2]
[347243290,1735617032121,-422.95,0.000122,2]
[347243291,1735617032131,-150.0,0.000122,2]
[347243292,1735617032141,-150.0,0.000122,2]
[347243293,1735617032150,-151.85,0.000122,2]
[347243294,1735617032160,-501.49,0.00012201,2]
[347243295,1735617032170,-218.21416079,0.0001232,2]
[347243296,1735617032179,-210.0,0.00012356,2]
[347243297,1735617032188,-1288.2802,0.00012379,2]
[347243298,1735617032198,-495.45,0.00012397,2]
[347243299,1735617032207,-150.0,0.000124,2]
[347243300,1735617032218,-25409.88915756,0.000124,2]
[347243301,1735617032232,-314.54,0.000124,2]
[347243302,1735617032242,-1392.41848165,0.000124,2]
[347243303,1735617032375,-749.07879986,0.000124,2]
[347243400,1735617037822,-1321.23864544,0.000124,2]
[347243401,1735617038071,-3779.96245904,0.000124,2]
[347243402,1735617038083,-4078.269883,0.000124,2]
[347243403,1735617038095,-8679.03173101,0.000124,2]
[347243404,1735617038104,-500.0,0.0001244,2]
[347243405,1735617038113,-1266.0,0.0001246,2]
[347243406,1735617038122,-2006.955,0.0001246,2]
[347243407,1735617038132,-3891.0,0.0001246,2]
[347243408,1735617038142,-150.0,0.0001246,2]
[347243409,1735617038151,-1102.0,0.0001246,2]
[347243410,1735617038160,-150.0,0.0001246,2]
[347243411,1735617038170,-1070.70619385,0.00012478,3]
[347243412,1735617038180,-4914.90391548,0.00012479,2]
[347243595,1735617039939,-368.8072328,0.00012479,2]
[347243596,1735617039950,-1906.34999912,0.00012479,2]
[347243597,1735617042772,-492.45,0.000124,2]
[347243598,1735617042781,-150.0,0.0001246,2]
[347243599,1735617042791,-7.55,0.00012479,2]
[347243606,1735617043046,-770.69613598,0.00012479,2]
[347243607,1735617043058,-610.98651663,0.00012479,2]
[347243608,1735617043070,-295.69048668,0.00012479,2]
[347243609,1735617043082,-62000.66062021,0.00012479,2]
[347243610,1735617043094,-1142.2655509,0.00012479,2]
[347243611,1735617043105,-2493.1,0.00012479,2]
[347243612,1735617043117,-285.32888158,0.00012479,2]
[347243613,1735617043128,-489.12997899,0.00012479,2]
[347243726,1735617045762,-209.77,0.00011702,2]
[347243727,1735617045771,-2324.252602,0.00012338,2]
[347243728,1735617045780,-428.78144979,0.00012479,2]
[347243729,1735617046756,-1382.5,0.00012479,2]
[347243730,1735617046767,-305.37491309,0.00012479,2]
[347243731,1735617046778,-4109.05887599,0.00012479,2]
[347243732,1735617046788,-500.0,0.00012479,2]
[347243733,1735617060504,154.03,0.00010137,2]
[347243734,1735617186779,684.06,9.563e-05,2]
[347243737,1735618056108,158.16,0.00010137,2]
[347243738,1735618067507,657.98,9.265e-05,2]
[347243749,1735618231655,-400.0,0.00011159,2]
[347243750,1735618231665,-250.0,0.0001117,2]
[347243751,1735618231674,-366.14148768,0.0001128,2]
[347243752,1735618231685,-574.23912778,0.0001128,2]
[347243753,1735618231696,-912.03938454,0.0001128,2]
[347243754,1735618231705,-949.153477,0.00011286,2]
[347243755,1735618231755,-50.846523,0.00011286,2]
[347243756,1735618231764,-4439.83,0.00011317,2]
[347243757,1735618231774,-250.0,0.00011347,2]
[347243758,1735618231784,-768.98,0.00011348,2]
[347243759,1735618231793,-263.81,0.00011351,2]
[347243760,1735618231803,-322.13,0.00011383,2]
[347243761,1735618231812,-250.0,0.0001144,2]
[347243762,1735618231822,-300.0,0.00011499,2]
[347243763,1735618231831,-700.0,0.000115,4]
[347243764,1735618231840,-657.98,0.00011529,2]
[347243765,1735618231849,-7648.64186566,0.000116,2]
[347243766,1735618231913,-1212.41366256,0.000116,2]
[347243767,1735618231995,-1000.0,0.000116,2]
[347243788,1735618237991,-355.72,0.000116,2]
[347243793,1735618238055,-965.82299756,0.000116,2]
[347243795,1735618238066,-1027.90064709,0.000116,2]
[347243797,1735618238077,-833.69583873,0.000116,2]
[347243800,1735618238088,-358.16823312,0.000116,2]
[347243804,1735618238125,-2487.3617592,0.000116,2]
[347243806,1735618238136,-4843.48066388,0.000116,2]
[347243810,1735618238166,-6759.6643322,0.000116,2]
[347243812,1735618238175,-2907.57,0.000116,2]
[347243814,1735618238183,-5115.01,0.000116,2]
[347243816,1735618238192,-5463.23,0.000116,2]
[347243818,1735618238201,-150.99,0.000116,2]
[347243820,1735618238209,-1500.0,0.000116,4]
[347243822,1735618238221,-2300.0,0.000117,4]
[347243824,1735618238230,-3100.0,0.000118,4]
[347243826,1735618238240,-150.0,0.000119,2]
[347243828,1735618238249,-3900.0,0.000119,4]
[347243829,1735618238259,-420.326,0.0001197,2]
[347243831,1735618238268,-150.0,0.00012,2]
[347243833,1735618238278,-450.0,0.00012,2]
[347243835,1735618238287,-3891.0,0.00012224,2]
[347243837,1735618238296,-150.0,0.00012224,2]
[347243839,1735618238305,-1102.0,0.00012224,2]
[347243841,1735618238315,-3000.0,0.0001235,2]
[347243843,1735618238324,-23695.3926,0.0001236,2]
[347243845,1735618238334,-5009.0309,0.00012379,2]
[347243847,1735618238344,-173.633,0.00012379,2]
[347243849,1735618238353,-165.05193656,0.00012379,2]
[347243851,1735618238362,-3535.70776378,0.00012379,2]
[347243853,1735618238371,-1000.0,0.0001238,2]
[347243855,1735618238380,-509.04,0.00012387,2]
[347243857,1735618238389,-165.05193655,0.0001239,2]
[347243858,1735618238398,-508.99,0.00012391,2]
[347243860,1735618238407,-1287.97,0.00012393,2]
[347243862,1735618238417,-501.13,0.00012395,2]
[347243864,1735618238426,-151.3090628,0.00012399,2]
[347243866,1735618238435,-151.3090628,0.00012399,2]
[347243868,1735618238445,-509.75,0.000124,2]
[347243870,1735618238454,-505.29,0.000124,2]
[347243872,1735618238463,-165.05193655,0.000124,2]
[347243874,1735618238475,-50000.000001,0.000124,2]
[347243876,1735618238484,-700.0,0.000124,4]
[347243878,1735618238493,-151.3090628,0.000124,2]
[347243880,1735618238502,-440.1488,0.00012438,2]
[347243882,1735618238511,-150.0,0.0001246,2]
[347243884,1735618238521,-150.0,0.0001246,2]
[347243886,1735618238529,-150.0,0.0001246,2]
[347243887,1735618238538,-150.37,0.0001247,2]
[347243888,1735618238547,-752.64,0.00012478,2]
[347243889,1735618238556,-700.0,0.00012478,2]
[347243890,1735618238565,-2873.65712564,0.00012479,2]
[347243891,1735618238574,-11461.80659438,0.00012479,2]
[347243892,1735618238585,-7527.80749218,0.00012479,2]
[347243893,1735618238595,-1003.01704962,0.00012479,2]
[347243894,1735618238606,-1271.09,0.00012479,2]
[347243895,1735618238633,-769.96443153,0.00012479,2]
[347243896,1735618238644,-414.04008287,0.00012479,2]
[347243934,1735618239971,-191246.47152714,0.00012479,2]
[347243935,1735618240095,-6818.12682759,0.00012479,2]
[347243936,1735618240106,-447.2607677,0.00012479,2]
[347243937,1735618240172,-638.76413583,0.00012479,2]
[347243938,1735618242679,-27086.72937982,0.00012479,2]
[347243939,1735618242733,-220619.57038687,0.00012479,2]
[347243940,1735618242888,-500.57827625,0.00012479,2]
[347243941,1735618242899,-3953.81927455,0.00012479,2]
[347243942,1735618242936,-2721.28325512,0.00012479,2]
[347243943,1735618243002,-699.5899999,0.00012479,2]
[347243944,1735618243013,-424.49932413,0.00012479,2]
[347243949,1735618245662,-7920.66187864,0.00012479,2]
[347243950,1735618245715,-1867.2873966,0.00012479,2]
[347243951,1735618245729,-4391.5430423,0.00012479,2]
[347243952,1735618245821,-4579.49439479,0.00012479,2]
[347243953,1735618245834,-1199.4,0.00012479,2]
[347243954,1735618245874,-1138.28203649,0.00012479,2]
[347244059,1735618983121,652.93,9.505e-05,2]
[347244060,1735618990510,424.67,0.00010137,2]
[347244088,1735619432520,-300.0,0.00011211,2]
[347244089,1735619432529,-970.62,0.00011211,2]
[347244090,1735619432538,-615.18,0.00011234,2]
[347244091,1735619432547,-250.0,0.00011237,2]
[347244092,1735619432556,-1000.0,0.00011237,2]
[347244093,1735619432565,-250.0,0.00011237,2]
[347244094,1735619432574,-163.99502135,0.00011244,2]
[347244095,1735619432584,-158.30827954,0.00011244,2]
[347244096,1735619432593,-250.0,0.00011394,2]
[347244097,1735619432603,-361.99,0.00011409,2]
[347244098,1735619432612,-300.0,0.000115,4]
[347244099,1735619432621,-753.49574876,0.00011541,2]
[347244100,1735619432658,-52.41425124,0.00011541,2]
[347244101,1735619432667,-600.0,0.000116,4]
[347244102,1735619432676,-500.0,0.00011699,2]
[347244103,1735619432685,-900.0,0.000117,4]
[347244104,1735619432698,-300.0,0.00011768,2]
[347244105,1735619432707,-652.93,0.00011769,2]
[347244106,1735619432716,-126.0144638,0.000118,4]
[347244107,1735619432728,-1073.9855362,0.000118,4]
[347244108,1735619432737,-402.875,0.0001186,2]
[347244109,1735619432746,-418.4140125,0.00011878,2]
[347244110,1735619432794,-999.1096,0.00011878,2]
[347244111,1735619432805,-503.1,0.00011878,2]
[347244112,1735619432840,-34.5163875,0.00011878,2]
[347244113,1735619432850,-872.74,0.00011878,2]
[347244114,1735619432858,-85.5836125,0.000119,4]
[347244115,1735619433062,-1414.4163875,0.000119,4]
[347244116,1735619433072,-4191.56302617,0.00012,2]
[347244121,1735619437760,-3727.62984173,0.00012,2]
[347244122,1735619437771,-110.14081433,0.00012,2]
[347244123,1735619437780,-206.315608,0.00012,2]
[347244124,1735619437789,-152.420428,0.00012,2]
[347244125,1735619437799,-152.41,0.00012041,2]
[347244126,1735619437808,-500.0,0.00012082,2]
[347244127,1735619437817,-150.93,0.00012182,2]
[347244128,1735619437826,-152.42,0.00012182,2]
[347244129,1735619437836,-150.83,0.00012182,2]
[347244130,1735619437845,-150.12,0.00012182,2]
[347244131,1735619437855,-121292.471438,0.000123,2]
[347244132,1735619437864,-497.55,0.00012351,2]
[347244133,1735619437874,-151.24269809,0.00012398,2]
[347244134,1735619437883,-213.44776292,0.00012398,2]
[347244135,1735619437893,-150.16846953,0.00012399,2]
[347244136,1735619437902,-150.1684695,0.00012399,2]
[347244137,1735619437911,-150.1684695,0.00012399,2]
[347244138,1735619437921,-150.1684695,0.00012399,2]
[347244139,1735619437930,-150.1684695,0.00012399,2]
[347244140,1735619437939,-150.1684695,0.00012399,2]
[347244141,1735619437949,-157.907459,0.00012399,2]
[347244142,1735619437958,-157.90745896,0.00012399,2]
[347244143,1735619437967,-157.90745896,0.000124,2]
[347244144,1735619437976,-157.90745896,0.000124,2]
[347244145,1735619437985,-150.0,0.000124,2]
[347244146,1735619437994,-157.90745896,0.000124,2]
[347244147,1735619438003,-300.0,0.000124,4]
[347244148,1735619438011,-150.1684695,0.000124,2]
[347244149,1735619438021,-1175.322,0.00012438,2]
[347244150,1735619438030,-1906.0,0.00012438,2]
[347244151,1735619438039,-502.16,0.00012438,2]
[347244152,1735619438048,-14441.24,0.0001244,2]
[347244153,1735619438057,-3891.0,0.00012458,2]
[347244154,1735619438066,-636.0,0.00012458,2]
[347244155,1735619438075,-150.0,0.00012458,2]
[347244156,1735619438084,-1102.0,0.00012458,2]
[347244157,1735619438094,-2459.5407707,0.00012463,2]
[347244158,1735619438104,-952.0,0.00012466,2]
[347244159,1735619438113,-2459.5407707,0.00012466,2]
[347244160,1735619438122,-2459.5407707,0.0001247,2]
[347244161,1735619438132,-507.49953861,0.00012473,2]
[347244162,1735619438141,-159.82007708,0.00012473,2]
[347244163,1735619438150,-109.36914429,0.00012478,2]
[347244167,1735619438333,-390.63085571,0.00012478,2]
[347244168,1735619438344,-296.07518591,0.00012478,2]
[347244169,1735619438355,-2577.72566161,0.00012478,2]
[347244170,1735619438398,-618.49444355,0.00012478,2]
[347244171,1735619438408,-1277.4703495,0.00012478,2]
[347244179,1735619439898,-13933.80590325,0.00012478,2]
[347244180,1735619440013,-314.88912545,0.00012478,2]
[347244181,1735619440025,-1023.56161318,0.00012478,2]
[347244182,1735619440135,-777.12919889,0.00012478,2]
[347244201,1735619442885,-379.500005,0.00012478,2]
[347244202,1735619442896,-13695.42419617,0.00012478,2]
[347244203,1735619442908,-575.96116382,0.00012478,2]
[347244204,1735619442918,-312.65249985,0.00012478,2]
[347244205,1735619442962,-1231.88090112,0.00012478,2]
[347244206,1735619443030,-2107.10044256,0.00012478,2]
[347244415,1735619445770,-745.7939672,0.000118,2]
[347244416,1735619445781,-316.270101,0.000118,2]
[347244417,1735619445924,-8960.98566294,0.000118,2]
[347244418,1735619445933,-210878.32931014,0.00012478,2]
[347244419,1735619445943,-504.15,0.00012478,2]
[347244420,1735619445952,-508.1,0.00012479,2]
[347244421,1735619445962,-1000.0,0.00012479,2]
[347244422,1735619445972,-1000.0,0.00012479,2]
[347244423,1735619445981,-1000.0,0.00012479,2]
[347244424,1735619445991,-1000.0,0.00012479,2]
[347244425,1735619446000,-1000.0,0.00012479,2]
[347244426,1735619446010,-1000.0,0.00012479,2]
[347244427,1735619446020,-1000.0,0.00012479,2]
[347244428,1735619446030,-1000.0,0.00012479,2]
[347244429,1735619446040,-1000.0,0.00012479,2]
[347244430,1735619446052,-1003.91916577,0.00012479,2]
[347244431,1735619446063,-1393.22911174,0.00012479,2]
[347244432,1735619446072,-200.0,0.00012479,2]
[347244433,1735619446082,-200.0,0.00012479,2]
[347244434,1735619446091,-3000.0,0.00012479,2]
[347244435,1735619446101,-2000.0,0.00012479,2]
[347244436,1735619446110,-200.0,0.00012479,2]
[347244437,1735619446125,-2459.5407707,0.00012479,2]
[347244438,1735619446135,-10308.42215563,0.0001248,2]
[347244439,1735619446147,-154783.48889502,0.0001248,2]
[347244442,1735619446206,-385.0,0.0001248,2]
[347244443,1735619446268,-98122.03199265,0.0001248,2]
[347244444,1735619446278,-152.92944,0.0001248,2]
[347244445,1735619446288,-152.92944,0.0001248,2]
[347244446,1735619446298,-47769.85183751,0.0001248,2]
[347244447,1735619446307,-39252.27195967,0.0001248,2]
[347244448,1735619446317,-1000.0,0.0001248,2]
[347244449,1735619446326,-1000.0,0.0001248,2]
[347244450,1735619446340,-1000.0,0.0001248,2]
[347244451,1735619446349,-1000.0,0.0001248,2]
[347244452,1735619446359,-1000.0,0.0001248,2]
[347244453,1735619446368,-1000.0,0.0001248,2]
[347244454,1735619446377,-1000.0,0.0001248,2]
[347244455,1735619446387,-1000.0,0.0001248,2]
[347244456,1735619446396,-1000.0,0.0001248,2]
[347244457,1735619446406,-1000.0,0.0001248,2]
[347244458,1735619446415,-200.0,0.0001248,2]
[347244459,1735619446425,-38713.49654868,0.00012481,2]
[347244460,1735619446467,-2105.23442103,0.00012481,2]
[347244462,1735619597789,495.0,0.0002,120]
[347244463,1735619849743,152.51,0.00010137,2]
[347244464,1735620058645,621.83,9.69e-05,2]
[347244474,1735620602721,156.0,0.00012481,30]
[347244475,1735620603235,156.0,0.00013433,30]
[347244476,1735620603550,156.0,0.00014385,30]
[347244477,1735620603842,156.0,0.00015337,30]
[347244480,1735620632047,-250.0,0.00011543,2]
[347244481,1735620632056,-644.72,0.00011558,2]
[347244482,1735620632066,-250.0,0.00011569,2]
[347244483,1735620632075,-1000.0,0.00011579,2]
[347244484,1735620632084,-180.99,0.00011675,2]
[347244485,1735620632093,-386.215,0.0001186,2]
[347244486,1735620632103,-621.83,0.00011954,2]
[347244487,1735620632112,-150.0,0.00011973,2]
[347244488,1735620632121,-505.07,0.00012,2]
[347244489,1735620632131,-450.0,0.00012,2]
[347244490,1735620632140,-278.99056932,0.00012,4]
[347244491,1735620632150,-637.943,0.00012,2]
[347244492,1735620632159,-165.35936797,0.00012399,2]
[347244493,1735620632169,-6352.85420396,0.000124,2]
[347244494,1735620632180,-3647.13579604,0.000124,2]
[347244495,1735620632190,-165.35936797,0.000124,2]
[347244496,1735620632199,-3891.0,0.0001246,2]
[347244497,1735620632208,-150.0,0.0001246,2]
[347244498,1735620632217,-237.54366056,0.0001246,2]
[347244499,1735620632278,-546.17140028,0.0001246,2]
[347244500,1735620632289,-318.28493916,0.0001246,2]
[347244501,1735620632299,-623.44910638,0.00012467,2]
[347244502,1735620632309,-623.44910638,0.00012472,2]
[347244503,1735620632319,-28132.61616202,0.00012481,2]
[347244504,1735620632365,-601.7404142,0.00012481,2]
[347244505,1735620632380,-3709.30688129,0.00012481,2]
[347244506,1735620632403,-2607.38371863,0.00012481,2]
[347244507,1735620632492,-327.42927487,0.00012481,2]
[347244508,1735620632527,-378.98345466,0.00012481,2]
[347244601,1735620638485,-1000.0,0.00012399,2]
[347244604,1735620638494,-150.0,0.0001246,2]
[347244606,1735620638503,-871.212,0.00012481,2]
[347244622,1735620638726,-914.94104856,0.00012481,2]
[347244629,1735620638784,-1978.93527603,0.00012481,2]
[347244632,1735620638796,-2099.14772333,0.00012481,2]
[347244634,1735620638808,-152763.88847396,0.00012481,2]
[347244636,1735620638819,-64149.01402625,0.00012481,2]
[347244638,1735620638828,-36477.30660419,0.00012481,2]
[347244640,1735620638837,-3000.0,0.00012481,2]
[347244642,1735620638847,-28238.04142404,0.00012481,2]
[347244644,1735620638855,-242.61214602,0.00012481,2]
[347244646,1735620638864,-200.0,0.00012481,2]
[347244648,1735620638873,-200.0,0.00012482,2]
[347244650,1735620638882,-242.61214602,0.00012482,2]
[347244652,1735620638891,-1000.0,0.00012482,2]
[347244654,1735620638900,-1000.0,0.00012482,2]